bitfinex/quotes_ETHUSD_20250223
["timestamp","ask_amount","ask_price","bid_price","bid_amount"]
[1740308681461,0.03782201,2813.0,2812.5,0.8095]
[1740308681666,0.7808,2813.1,2812.5,0.8095]
[1740308681888,0.03782201,2813.0,2812.5,0.8095]
[1740308682100,0.7808,2813.1,2812.5,6.1995]
[1740308682280,0.03782201,2813.0,2812.6,0.6402945]
[1740308682449,0.7808,2813.1,2812.6,0.6402945]
[1740308682961,0.03782201,2813.0,2812.6,0.6402945]
[1740308683282,0.7808,2813.1,2812.6,0.6402945]
[1740308683479,0.03782201,2813.0,2812.6,0.6402945]
[1740308683656,0.7808,2813.1,2812.7,0.68397945]
[1740308683862,0.03797605,2813.0,2812.7,0.68397945]
[1740308684073,0.7808,2813.1,2812.7,6.07397945]
[1740308688777,0.37189338,2813.2,2812.7,6.07397945]
[1740308690071,0.7812,2813.1,2812.7,6.07397945]
[1740308690282,0.7812,2813.1,2812.7,5.39]
[1740308693898,0.7812,2813.1,2812.4,0.203445]
[1740308701902,0.7812,2813.1,2812.3,5.39]
[1740308702214,0.80064188,2813.0,2811.6,5.39]
[1740308702388,0.7623,2812.9,2811.6,5.39]
[1740308702792,0.03819747,2812.8,2811.6,5.39]
[1740308702981,0.7623,2812.7,2811.6,5.39]
[1740308703279,0.7623,2812.7,2811.9,0.7859]
[1740308703540,0.03819747,2812.6,2811.9,0.7859]
[1740308704819,0.03819747,2812.6,2812.0,0.55]
[1740308705723,0.03819747,2812.6,2812.0,5.94]
[1740308706017,0.7623,2812.7,2812.0,5.94]
[1740308706323,0.7623,2812.7,2812.1,0.67259]
[1740308710397,0.7623,2812.7,2812.2,0.55]
[1740308710698,0.7623,2812.7,2812.2,5.39]
[1740308714722,0.7623,2812.7,2811.9,5.39]
[1740308715609,0.7623,2812.7,2811.5,12.651]
[1740308715927,0.03761979,2812.6,2811.5,5.39]
[1740308716230,0.7911,2812.5,2811.5,5.39]
[1740308716592,0.03745609,2812.4,2811.5,5.39]
[1740308716795,0.7911,2812.3,2811.5,5.39]
[1740308717254,0.7911,2812.1,2811.5,5.39]
[1740308717394,0.7911,2812.1,2811.5,5.929]
[1740308717765,0.03745609,2812.0,2811.5,5.929]
[1740308717890,0.7911,2812.0,2811.5,5.929]
[1740308718097,0.03745609,2811.9,2811.5,5.929]
[1740308718397,0.7911,2812.1,2811.5,5.929]
[1740308718704,0.03745609,2812.0,2811.5,5.929]
[1740308718903,0.7911,2811.9,2811.5,5.929]
[1740308720737,0.03714789,2811.8,2811.5,5.929]
[1740308720909,0.7911,2811.9,2811.5,5.929]
[1740308721235,0.03714789,2811.8,2811.5,5.929]
[1740308721554,0.7911,2811.9,2811.5,5.929]
[1740308721705,0.03714789,2811.8,2811.5,5.929]
[1740308721912,0.7911,2811.9,2811.5,5.929]
[1740308722234,0.03714789,2811.8,2811.5,5.929]
[1740308722596,0.7911,2811.9,2811.5,5.929]
[1740308723132,0.03714789,2811.8,2811.5,5.929]
[1740308723335,0.7911,2811.9,2811.5,5.929]
[1740308723526,0.03714789,2811.8,2811.5,5.929]
[1740308723709,0.7911,2811.9,2811.5,5.929]
[1740308723896,0.03714789,2811.8,2811.5,5.929]
[1740308724097,0.7911,2811.9,2811.5,5.929]
[1740308724297,0.03714789,2811.8,2811.5,5.929]
[1740308724536,0.7911,2811.9,2811.5,5.929]
[1740308724848,0.03662782,2811.8,2811.6,0.5929]
[1740308725148,0.7911,2811.9,2811.6,0.5929]
[1740308725379,0.03662782,2811.8,2811.6,0.5929]
[1740308725733,0.7911,2811.9,2811.6,0.5929]
[1740308725936,0.03662782,2811.8,2811.6,0.5929]
[1740308726159,0.7911,2811.9,2811.6,0.5929]
[1740308726434,0.03662782,2811.8,2811.6,0.5929]
[1740308726658,0.03662782,2811.8,2811.7,0.59829]
[1740308726860,0.7911,2811.9,2811.7,0.59829]
[1740308727331,0.03662782,2811.8,2811.7,0.59829]
[1740308727537,0.7911,2811.9,2811.7,0.59829]
[1740308727736,0.03662782,2811.8,2811.7,0.59829]
[1740308727970,1.17446489,2812.2,2811.7,0.59829]
[1740308728158,0.03662782,2812.1,2811.7,0.59829]
[1740308729469,0.03662782,2812.1,2811.7,5.98829]
[1740308729679,0.03662782,2812.1,2811.8,0.679449]
[1740308729879,1.17446489,2812.2,2811.8,0.679449]
[1740308734113,0.8025,2812.1,2811.7,5.39]
[1740308734393,0.8025,2812.1,2810.3,0.1]
[1740308734394,0.8025,2812.1,2811.0,5.39]
[1740308734744,0.03666636,2812.0,2811.0,5.39]
[1740308734944,0.8025,2811.9,2811.0,5.39]
[1740308735384,0.37201157,2811.8,2811.0,5.39]
[1740308735542,0.8025,2811.7,2811.0,5.39]
[1740308738460,0.8025,2811.7,2810.7,5.39]
[1740308738792,0.8025,2811.7,2810.8,1.34582]
[1740308741199,0.8025,2811.7,2810.7,5.39]
[1740308742982,0.0366471,2811.6,2810.7,5.39]
[1740308743312,0.833,2811.5,2810.7,5.39]
[1740308744809,0.833,2811.3,2810.7,5.39]
[1740308745466,0.03599192,2811.2,2810.7,5.39]
[1740308745667,0.03599192,2811.2,2810.8,0.539]
[1740308745868,0.833,2811.3,2810.8,0.539]
[1740308746302,0.03599192,2811.2,2810.8,0.539]
[1740308746688,0.833,2811.3,2810.8,0.539]
[1740308747096,0.03599192,2811.2,2810.8,0.539]
[1740308747427,0.833,2811.3,2810.8,0.539]
[1740308747953,0.03599192,2811.2,2810.8,0.439]
[1740308748082,0.833,2811.3,2810.8,0.439]
[1740308748427,0.03599192,2811.2,2810.8,0.439]
[1740308748721,0.8249,2811.1,2810.7,5.39]
[1740308753295,0.8249,2811.1,2810.3,5.39]
[1740308759264,0.8249,2811.1,2809.7,7.265]
[1740308759481,0.8249,2811.0,2809.7,13.4622]
[1740308759782,0.85983195,2811.0,2809.7,13.4622]
[1740308759942,0.8249,2810.8,2809.8,1.34622]
[1740308760141,0.03466204,2810.7,2809.8,1.34622]
[1740308760492,0.8249,2810.7,2809.7,12.655]
[1740308760679,0.03466204,2810.6,2809.7,12.655]
[1740308760881,0.7723,2810.5,2809.7,12.655]
[1740308761461,0.7723,2810.3,2809.7,7.265]
[1740308762036,0.7723,2810.1,2809.7,7.265]
[1740308766142,0.8291,2809.9,2809.7,7.265]
[1740308766493,0.8291,2809.9,2808.9,5.39]
[1740308766695,0.03388092,2809.8,2809.0,0.69974]
[1740308766889,0.8291,2809.9,2809.0,0.69974]
[1740308767199,0.03388092,2809.8,2809.0,0.69974]
[1740308767598,0.8291,2809.9,2809.0,0.69974]
[1740308767998,0.03388092,2809.8,2809.0,0.69974]
[1740308768199,0.03388092,2809.8,2809.1,0.608974]
[1740308768442,0.8291,2809.9,2809.1,0.608974]
[1740308768795,0.03388092,2809.8,2809.1,0.608974]
[1740308769017,0.8291,2809.9,2809.1,0.608974]
[1740308769497,0.03388092,2809.8,2809.1,0.608974]
[1740308770033,0.8291,2809.9,2809.1,0.608974]
[1740308774229,0.8291,2809.9,2808.9,5.39]
[1740308778314,0.8291,2809.9,2809.0,0.8162]
[1740308779358,0.8291,2809.9,2808.9,5.39]
[1740308791931,0.7686,2809.7,2808.5,5.39]
[1740308792566,0.37040767,2809.6,2808.5,5.39]
[1740308792755,0.7686,2809.5,2808.5,6.6822754]
[1740308796031,0.7686,2809.5,2808.5,5.39]
[1740308798367,0.7686,2809.5,2808.6,0.765]
[1740308799101,0.7686,2809.5,2808.0,5.39]
[1740308799282,0.7686,2809.3,2807.8,5.39]
[1740308802099,0.7598,2809.1,2807.8,5.39]
[1740308803891,0.7598,2809.1,2807.5,5.39]
[1740308803892,0.7598,2808.9,2807.5,5.39]
[1740308804101,0.7598,2808.7,2807.5,5.39]
[1740308804599,3.0,2808.6,2807.2,0.8131]
[1740308804767,0.7598,2808.5,2807.2,0.8131]
[1740308807791,0.3709076,2808.4,2807.2,0.8131]
[1740308807993,0.7552,2808.3,2807.2,0.8131]
[1740308808298,0.7552,2808.3,2807.3,5.39]
[1740308809806,0.7552,2808.3,2807.3,6.1413]
[1740308810301,0.7552,2808.3,2807.4,0.61413]
[1740308810792,0.7552,2808.5,2807.7,0.7513]
[1740308810954,0.7552,2808.5,2807.8,0.55]
[1740308812096,0.7552,2808.8,2807.9,0.7513]
[1740308812296,0.7552,2808.8,2808.0,0.55]
[1740308812959,0.7552,2808.8,2807.8,0.256]
[1740308813361,0.7552,2808.8,2807.8,0.65673]
[1740308815764,0.7552,2808.8,2807.8,6.04673]
[1740308816279,0.7552,2809.2,2807.9,4.3013]
[1740308816491,0.7552,2809.1,2808.1,0.55]
[1740308816695,0.7552,2809.1,2808.2,0.594]
[1740308820794,0.7552,2809.1,2808.3,1.3094]
[1740308822695,0.7552,2809.1,2808.3,4.3094]
[1740308824720,0.7552,2809.1,2808.5,0.55]
[1740308824901,0.7552,2809.1,2808.5,5.94]
[1740308825106,0.7552,2809.1,2808.6,0.594]
[1740308829280,0.7552,2809.1,2808.5,5.39]
[1740308835961,0.7552,2809.1,2807.6,12.662]
[1740308838941,0.3714504,2809.0,2807.6,12.662]
[1740308839145,0.8276,2808.9,2807.6,12.662]
[1740308839528,0.8276,2808.8,2807.6,12.662]
[1740308839745,0.8276,2808.6,2807.6,12.662]
[1740308840959,0.8054,2809.5,2807.9,0.26906548]
[1740308841256,0.3715047,2809.7,2808.7,0.55]
[1740308841556,0.8054,2809.8,2808.9,3.0]
[1740308842540,0.8054,2809.8,2808.9,3.2651873]
[1740308842861,0.8054,2809.8,2808.9,0.2651873]
[1740308844254,0.8054,2809.8,2809.0,0.33281394]
[1740308844949,0.8054,2809.8,2809.0,1.03790406]
[1740308845838,0.8054,2809.8,2809.1,0.33281394]
[1740308846859,0.8054,2809.8,2809.2,0.33281394]
[1740308848162,0.8054,2809.8,2809.3,0.33281394]
[1740308849564,0.8054,2809.8,2809.4,0.33281394]
[1740308850681,0.8054,2809.8,2809.1,5.39]
[1740308851028,0.8054,2809.8,2809.2,0.33248938]
[1740308852631,0.8054,2809.8,2809.3,0.33248938]
[1740308853863,0.8054,2809.8,2809.4,0.33248938]
[1740308855705,0.8054,2809.8,2809.0,0.33248938]
[1740308856711,0.8054,2809.8,2809.1,0.33248938]
[1740308858609,0.8054,2809.8,2809.2,0.33248938]
[1740308860416,6.0454,2809.8,2809.2,0.33248938]
[1740308860615,0.60454,2809.7,2809.2,0.33248938]
[1740308866623,0.7742,2809.5,2809.2,0.33248938]
[1740308866822,0.55,2809.4,2809.2,0.33248938]
[1740308866973,0.55,2809.4,2809.3,0.33248938]
[1740308867487,1.3242,2809.4,2809.3,0.33248938]
[1740308867823,1.74920616,2809.4,2809.3,0.33248938]
[1740308868168,1.74920616,2809.4,2808.5,0.816]
[1740308869517,2.47458774,2809.4,2808.5,0.816]
[1740308869721,2.47458774,2809.4,2808.6,0.33248938]
[1740308871275,2.47458774,2809.4,2808.7,0.33248938]
[1740308871474,0.39357906,2809.3,2808.7,0.33248938]
[1740308872442,0.37094871,2809.2,2808.7,0.33248938]
[1740308872806,0.37094871,2809.2,2808.5,0.816]
[1740308873546,0.72964173,2808.8,2808.5,0.816]
[1740308873948,0.72964173,2808.8,2808.6,0.33289355]
[1740308874828,0.72964173,2808.8,2808.5,0.816]
[1740308875905,0.37094871,2809.2,2808.5,0.816]
[1740308876419,0.7742,2809.1,2807.9,0.816]
[1740308876643,0.7742,2809.1,2808.0,0.64766279]
[1740308877454,0.7742,2809.1,2808.1,0.33278075]
[1740308878353,1.4713926,2809.1,2808.1,0.33278075]
[1740308878854,1.4713926,2809.1,2808.2,0.33278075]
[1740308880363,0.7742,2809.1,2808.2,0.33278075]
[1740308880568,0.7742,2809.1,2808.3,0.33278075]
[1740308881867,0.7742,2809.1,2808.4,0.33278075]
[1740308882031,0.7742,2809.1,2808.5,0.764]
[1740308882864,0.29999267,2810.2,2808.5,0.764]
[1740308882865,0.8273,2809.4,2808.5,6.154]
[1740308883066,0.8273,2809.7,2808.7,0.764]
[1740308884978,0.8273,2809.7,2808.9,0.764]
[1740308885644,0.8273,2809.7,2808.9,1.03593579]
[1740308885967,0.8273,2809.7,2808.9,0.764]
[1740308886373,0.8273,2809.7,2809.0,0.33278075]
[1740308886944,0.8273,2809.7,2808.9,0.764]
[1740308887654,0.8273,2809.7,2809.1,0.33288634]
[1740308887975,10.0,2809.5,2809.1,0.33288634]
[1740308888188,11.08273,2809.5,2809.1,0.33288634]
[1740308888688,11.08273,2809.5,2809.2,0.33288634]
[1740308890262,11.08273,2809.5,2808.9,0.764]
[1740308895276,10.0,2809.5,2808.9,0.764]
[1740308899678,0.7671,2809.4,2808.6,0.7895]
[1740308904712,10.0,2809.5,2808.6,0.7895]
[1740308927871,10.0,2809.5,2808.8,0.55]
[1740308928175,10.0,2809.5,2808.9,0.7534]
[1740308929038,10.0,2809.5,2809.1,3.55]
[1740308929234,10.0,2809.5,2809.3,0.7534]
[1740308929438,10.0,2809.5,2809.4,9.1434]
[1740308930042,10.0,2809.5,2809.4,9.6934]
[1740308930242,10.0,2809.5,2809.4,12.31641]
[1740308931352,10.0,2809.5,2809.4,12.09747]
[1740308931656,10.0,2809.5,2809.4,13.4229319]
[1740308933859,10.0,2809.5,2809.4,13.2271119]
[1740308937270,10.0,2809.5,2809.4,13.92525711]
[1740308944104,0.8168,2810.8,2809.6,0.7774]
[1740308944312,0.7524,2811.0,2809.9,0.7774]
[1740308944496,0.7524,2811.0,2810.1,0.7774]
[1740308945203,0.37157264,2811.4,2810.5,0.7774]
[1740308945403,0.7524,2811.5,2810.7,0.8068]
[1740308945712,0.7563,2811.9,2810.8,0.8068]
[1740308946314,0.7563,2811.9,2810.9,3.8068]
[1740308946514,0.7563,2811.9,2810.9,3.0]
[1740308946719,0.7563,2811.9,2811.0,0.8068]
[1740308949426,0.7563,2811.9,2811.1,0.7939]
[1740308949630,0.37167978,2812.0,2811.2,0.7939]
[1740308950443,0.8198,2812.1,2811.2,0.7939]
[1740308951108,0.8198,2812.3,2811.2,0.7939]
[1740308952152,0.8198,2812.3,2811.2,5.39]
[1740308954723,0.8198,2812.1,2811.2,5.39]
[1740308955141,0.8198,2811.9,2811.2,5.39]
[1740308955317,3.0,2811.8,2810.8,0.7939]
[1740308955518,0.8198,2811.6,2810.8,0.7939]
[1740308956253,0.03452709,2811.5,2810.8,0.7939]
[1740308961384,0.03452709,2811.5,2810.8,6.1839]
[1740308961658,0.8198,2811.6,2810.8,6.1839]
[1740308961866,0.03449817,2811.5,2810.8,6.1839]
[1740308962024,0.03449817,2811.5,2810.9,0.61839]
[1740308964876,0.8198,2811.6,2810.9,0.61839]
[1740308965478,0.03337939,2811.5,2810.9,0.61839]
[1740308970791,0.03337939,2811.5,2810.8,6.1839]
[1740308972792,0.77,2811.4,2810.5,0.7726]
[1740308973183,0.03338903,2811.3,2810.5,0.7726]
[1740308975194,0.03338903,2811.3,2810.5,1.04372167]
[1740308976201,0.03338903,2811.3,2810.5,6.43372167]
[1740308976498,0.03338903,2811.3,2810.6,0.64337217]
[1740308977004,0.77,2811.2,2810.6,5.39]
[1740308977175,0.77,2811.0,2809.7,0.7726]
[1740308977376,0.77,2811.0,2809.7,6.1626]
[1740308977705,0.80338903,2810.9,2809.7,5.39]
[1740308979305,0.80338903,2810.9,2809.8,0.7726]
[1740308979498,0.80338903,2810.9,2809.9,0.61626]
[1740308981202,1.17511733,2810.9,2809.9,0.61626]
[1740308981913,1.1417283,2810.9,2810.0,0.55]
[1740308982093,1.1417283,2810.9,2810.0,5.94]
[1740308982596,1.1417283,2810.9,2810.1,0.7838]
[1740308982769,1.1417283,2810.9,2810.2,1.22238]
[1740308983664,0.3717283,2810.9,2810.2,1.47938]
[1740308983869,0.775,2811.2,2810.2,1.47938]
[1740308987918,0.775,2811.2,2810.3,5.39]
[1740308990527,0.775,2811.2,2810.4,0.26971918]
[1740308990727,0.775,2811.2,2810.5,0.56597192]
[1740308999330,0.775,2811.2,2810.4,0.26971918]
[1740308999707,0.775,2811.2,2810.3,5.39]
[1740308999944,0.775,2811.2,2809.9,5.646]
[1740309000150,0.775,2811.2,2810.0,3.0]
[1740309005741,0.775,2811.2,2810.0,8.39]
[1740309006363,0.775,2811.2,2810.1,0.839]
[1740309007061,0.775,2811.2,2810.2,1.328]
[1740309008520,0.775,2811.2,2810.2,0.55]
[1740309011727,0.775,2811.2,2810.2,5.94]
[1740309014767,0.775,2811.2,2810.4,0.55]
[1740309014969,0.775,2811.2,2810.5,0.4328]
[1740309017573,0.775,2811.2,2810.6,5.94]
[1740309017739,0.775,2811.2,2810.8,0.55]
[1740309018572,0.8048,2811.5,2811.0,0.55]
[1740309018869,0.8048,2811.5,2811.2,0.55]
[1740309019074,0.8048,2811.5,2811.3,0.594]
[1740309024492,0.8274,2811.8,2811.3,0.594]
[1740309024848,0.03335026,2811.7,2811.3,0.594]
[1740309025241,0.8274,2811.8,2811.3,0.594]
[1740309025682,0.03335026,2811.7,2811.3,0.594]
[1740309025986,0.8274,2811.8,2811.3,0.594]
[1740309026183,0.8274,2811.8,2811.4,0.55]
[1740309026480,0.03335026,2811.7,2811.5,0.19186]
[1740309026683,0.8274,2811.8,2811.5,0.19186]
[1740309029680,0.8274,2811.8,2811.5,5.58186]
[1740309031595,1.12792366,2812.0,2811.5,5.58186]
[1740309040782,0.37192366,2812.0,2811.5,5.39]
[1740309041109,0.7831,2811.9,2811.5,5.39]
[1740309041515,0.7831,2811.9,2811.3,0.594]
[1740309059627,0.7831,2811.9,2811.2,5.39]
[1740309059939,0.7831,2811.9,2810.7,3.255]
[1740309060231,0.37192366,2812.0,2810.6,6.1988]
[1740309060232,0.03495986,2811.8,2810.6,6.1988]
[1740309060435,0.756,2811.7,2810.6,5.39]
[1740309060803,0.8121,2811.6,2810.6,5.39]
[1740309061004,0.8121,2811.6,2810.7,1.33418]
[1740309062613,0.8121,2811.6,2810.7,2.13628]
[1740309065630,0.8089,2811.4,2810.7,2.13628]
[1740309068909,0.03479606,2811.3,2810.7,0.8021]
[1740309069113,0.8089,2811.4,2810.7,0.8021]
[1740309069313,0.03479606,2811.3,2810.7,0.8021]
[1740309069513,0.8089,2811.4,2810.7,0.8021]
[1740309069922,0.8089,2811.4,2810.6,5.39]
[1740309070123,0.7591,2811.2,2810.6,6.37477]
[1740309072726,0.7591,2811.2,2810.7,0.7699]
[1740309073458,0.7591,2811.6,2810.7,0.7699]
[1740309073661,0.7591,2811.4,2809.9,5.39]
[1740309073864,0.7591,2811.3,2810.1,0.7699]
[1740309074160,0.7591,2811.2,2810.1,0.7699]
[1740309074361,0.7591,2811.2,2810.0,0.61599]
[1740309074658,0.79325047,2811.1,2809.9,5.39]
[1740309075226,0.79325047,2811.1,2808.6,0.27864507]
[1740309075227,0.79325047,2811.1,2809.3,0.7699]
[1740309075567,0.7591,2810.9,2809.4,3.0]
[1740309075877,3.0,2811.0,2809.4,0.55]
[1740309075878,0.7591,2810.7,2809.4,0.55]
[1740309076167,0.7591,2810.7,2809.4,3.55]
[1740309076373,0.7591,2810.7,2809.6,0.55]
[1740309076563,0.7591,2810.5,2809.6,0.55]
[1740309076728,0.7591,2810.5,2809.6,5.94]
[1740309077045,0.03348534,2810.4,2809.6,5.94]
[1740309077246,0.03348534,2810.4,2809.7,0.71941127]
[1740309078727,0.7591,2810.3,2809.7,0.71941127]
[1740309079431,0.7591,2810.3,2809.7,1.48931127]
[1740309080266,0.7591,2810.3,2809.7,6.87931127]
[1740309082339,0.823,2810.7,2809.8,3.55]
[1740309082551,0.823,2810.7,2810.0,0.55]
[1740309085875,0.8206,2811.1,2810.2,0.55]
[1740309086051,0.8206,2811.1,2810.5,0.55]
[1740309086874,0.8206,2811.5,2810.7,0.55]
[1740309087069,0.8206,2811.5,2810.8,0.594]
[1740309087281,0.8206,2811.5,2810.8,5.984]
[1740309095900,0.8206,2811.5,2810.8,5.39]
[1740309096988,0.8206,2811.5,2810.9,0.55]
[1740309097190,0.8206,2811.5,2811.0,0.7857]
[1740309100871,0.8206,2811.5,2811.0,6.1757]
[1740309101217,0.8206,2811.5,2811.0,5.39]
[1740309101507,0.8206,2811.5,2811.1,0.594]
[1740309106409,0.8206,2811.5,2811.0,5.39]
[1740309108286,0.8206,2811.5,2810.4,7.265]
[1740309109205,0.8206,2811.5,2810.0,5.39]
[1740309109520,0.7867,2811.3,2810.0,5.39]
[1740309109817,0.7867,2811.3,2810.0,5.646]
[1740309110020,0.7867,2811.1,2810.1,0.61418475]
[1740309116013,0.7867,2811.1,2810.1,0.61418475]
[1740309116432,0.7867,2811.1,2810.2,1.3265]
[1740309120953,0.7867,2811.1,2810.1,0.61418475]
[1740309121749,0.7867,2811.1,2810.1,6.00418475]
[1740309124606,0.7867,2811.1,2810.2,0.55]
[1740309124806,0.7867,2811.1,2810.3,0.38392791]
[1740309142796,0.7867,2811.1,2810.4,0.55]
[1740309145205,0.7867,2811.1,2810.4,1.3405]
[1740309145388,0.7867,2811.1,2810.4,6.7305]
[1740309151816,0.7867,2811.1,2810.6,0.55]
[1740309151996,0.7867,2811.1,2810.7,0.355]
[1740309157317,0.7867,2811.1,2810.7,5.745]
[1740309159122,0.7867,2811.1,2810.8,2.07219]
[1740309159428,0.7867,2811.1,2810.8,2.07471]
[1740309159815,0.768,2811.5,2810.8,2.82481]
[1740309159990,0.768,2811.5,2810.9,0.856981]
[1740309162326,0.768,2811.5,2810.7,5.745]
[1740309164822,0.768,2811.5,2810.8,3.805]
[1740309169138,0.768,2811.5,2811.0,3.55]
[1740309175137,0.768,2811.5,2811.0,8.94]
[1740309183756,0.768,2811.5,2811.4,0.69883242]
[1740309186552,0.768,2811.5,2811.0,8.94]
[1740309186757,0.768,2811.5,2811.1,0.894]
[1740309189860,0.8137,2811.9,2811.2,1.3464]
[1740309190454,0.8137,2811.9,2811.4,3.55]
[1740309190954,0.8137,2812.4,2811.5,0.7964]
[1740309191141,0.8137,2812.4,2811.6,0.255]
[1740309191342,0.8137,2812.4,2811.7,0.58044355]
[1740309193161,0.8137,2812.4,2811.8,0.33311023]
[1740309194457,0.8137,2812.4,2811.9,0.33311023]
[1740309195848,0.8137,2812.4,2812.0,0.33311023]
[1740309197071,0.8137,2812.4,2812.1,0.33311023]
[1740309198674,0.8137,2812.4,2812.2,0.33311023]
[1740309200172,0.8137,2812.4,2812.3,0.33311023]
[1740309210806,0.84802686,2812.4,2812.3,0.33311023]
[1740309210979,0.84802686,2812.4,2811.9,0.33311023]
[1740309211378,0.8137,2812.4,2811.9,0.33311023]
[1740309212400,0.8137,2812.4,2812.0,0.33311023]
[1740309213767,0.8137,2812.4,2812.1,0.33311023]
[1740309214166,0.03432686,2812.3,2812.1,0.33311023]
[1740309214498,0.8137,2812.4,2812.1,0.33311023]
[1740309214692,0.03432686,2812.3,2812.1,0.33311023]
[1740309215005,0.8137,2812.4,2812.1,0.33311023]
[1740309215305,0.03432686,2812.3,2812.2,0.33311023]
[1740309215494,0.8137,2812.4,2812.2,0.33311023]
[1740309215871,0.03432686,2812.3,2812.2,0.33311023]
[1740309216073,0.86292686,2812.3,2812.2,0.33311023]
[1740309216380,0.86292686,2812.3,2811.8,5.39]
[1740309216692,0.8286,2812.3,2811.8,5.39]
[1740309217597,0.8286,2812.3,2811.9,0.33307243]
[1740309219209,0.8286,2812.3,2812.0,0.33307243]
[1740309220174,0.8286,2812.3,2812.1,0.33307243]
[1740309221776,0.8286,2812.3,2812.2,0.33307243]
[1740309229721,0.37079874,2812.5,2812.2,0.33307243]
[1740309230085,0.7957,2812.4,2812.2,0.33307243]
[1740309231898,0.7957,2812.4,2812.3,0.33307243]
[1740309233502,0.37079874,2812.5,2812.3,0.33307243]
[1740309234832,0.37079874,2812.5,2812.4,0.33307243]
[1740309243629,1.09833042,2812.5,2812.4,1.05718579]
[1740309250599,1.09833042,2812.5,2812.4,1.24034437]
[1740309250800,1.19823042,2812.5,2812.4,1.24034437]
[1740309251017,1.23243201,2812.5,2812.4,1.24034437]
[1740309253546,1.23243201,2812.5,2812.4,1.05718579]
[1740309255644,1.19823042,2812.5,2812.4,1.05718579]
[1740309255946,1.23286564,2812.5,2812.4,1.05718579]
[1740309267751,2.03466564,2812.5,2812.4,1.05718579]
[1740309274031,1.23286564,2812.5,2812.4,1.05718579]
[1740309277033,1.19823042,2812.5,2812.4,1.05718579]
[1740309277231,1.23265368,2812.5,2812.4,1.05718579]
[1740309283962,2.22821905,2812.5,2812.4,0.33307243]
[1740309284129,1.50068737,2812.5,2812.4,0.33307243]
[1740309285482,1.50068737,2812.5,2811.7,0.33307243]
[1740309286587,0.8264,2812.4,2811.7,0.33307243]
[1740309287778,0.8264,2812.4,2811.8,0.33307243]
[1740309288074,0.03437506,2812.3,2811.8,0.33307243]
[1740309288276,0.8264,2812.2,2811.8,0.33307243]
[1740309288777,1.19806407,2812.2,2811.8,0.33307243]
[1740309288973,1.19806407,2812.2,2811.9,0.33307243]
[1740309290677,1.19806407,2812.2,2811.6,5.39]
[1740309290982,0.8264,2812.1,2811.5,0.8124]
[1740309291574,0.03411485,2812.0,2811.5,0.8124]
[1740309291786,0.03411485,2812.0,2811.6,0.33316699]
[1740309293175,0.03411485,2812.0,2811.7,0.33316699]
[1740309294594,0.03411485,2812.0,2811.8,0.33316699]
[1740309295887,0.03411485,2812.0,2811.9,0.33316699]
[1740309304835,0.74016061,2812.0,2811.9,1.03607857]
[1740309305056,0.74016061,2812.0,2811.9,0.70291158]
[1740309305057,4.50916061,2812.0,2811.9,0.70291158]
[1740309305183,4.50916061,2812.0,2810.8,0.7851]
[1740309305184,3.74016061,2812.0,2810.8,0.7851]
[1740309305390,0.769,2811.8,2810.8,0.7851]
[1740309305584,0.03351728,2811.7,2810.8,0.7851]
[1740309305785,0.7941,2811.6,2810.7,5.39]
[1740309306083,0.40491763,2811.7,2810.7,5.39]
[1740309306084,0.03350763,2811.5,2810.7,5.39]
[1740309306311,0.7941,2811.4,2810.7,5.39]
[1740309306506,0.82760763,2811.4,2810.5,8.0965]
[1740309306721,0.82760763,2811.4,2810.9,0.33305069]
[1740309307934,0.82760763,2811.4,2810.5,8.0965]
[1740309308124,1.43436839,2811.4,2810.5,8.0965]
[1740309309190,1.43436839,2811.4,2810.6,0.3325594]
[1740309310393,1.40086076,2811.4,2810.7,0.3325594]
[1740309311421,0.7941,2811.3,2810.7,0.3325594]
[1740309311632,0.7941,2811.3,2810.6,0.3325594]
[1740309314323,0.7941,2811.3,2810.5,7.264]
[1740309314842,0.44008608,2811.3,2810.5,7.264]
[1740309315055,0.7941,2811.2,2810.5,7.264]
[1740309316729,0.7941,2811.2,2810.6,0.8325]
[1740309320145,4.99,2811.0,2810.6,0.8325]
[1740309323065,4.99,2811.0,2810.7,0.33218471]
[1740309324342,4.99,2811.0,2810.8,0.33218471]
[1740309325665,4.99,2811.0,2810.7,0.33218471]
[1740309326759,4.99,2811.0,2810.8,0.33218471]
[1740309327962,4.99,2811.0,2810.9,0.33218471]
[1740309336677,5.6904756,2811.0,2810.9,1.05225453]
[1740309341976,5.6904756,2811.0,2810.9,0.95235453]
[1740309345293,7.10458049,2811.0,2810.9,0.95235453]
[1740309353477,10.10458049,2811.0,2810.9,0.95235453]
[1740309353773,10.10458049,2811.0,2810.9,0.23228471]
[1740309354377,10.10458049,2811.0,2809.8,0.8204]
[1740309354378,0.793,2810.9,2809.9,0.23228471]
[1740309354579,3.0,2810.8,2809.9,0.23228471]
[1740309354778,0.793,2810.6,2809.9,0.23228471]
[1740309355710,0.793,2810.6,2810.0,0.23228471]
[1740309357498,0.793,2810.6,2810.1,0.23228471]
[1740309358880,0.793,2810.6,2809.6,0.8204]
[1740309360109,0.793,2810.6,2809.7,0.33290112]
[1740309360301,0.793,2810.4,2809.7,0.33290112]
[1740309361115,0.793,2810.4,2809.8,0.33290112]
[1740309362215,0.793,2810.4,2809.9,0.33290112]
[1740309363418,0.793,2810.4,2809.7,0.33290112]